{"text_format":"3","workbook":"xlsx","n_sheets":2,"sheets":["Norēķinu rēķins","Uzņēmuma iestatīšana"],"not_rendered":{"images":1,"defined_names":27},"read":"whole","date_system":"1900"}

{"sheet":"Norēķinu rēķins","index":0,"n_rows":35,"n_cols":7,"rows_kept":35,"merged":[[1,1,1,2],[1,3,2,4],[1,6,2,6],[3,3,3,4],[4,3,4,4],[5,3,5,4],[23,1,23,3],[24,1,24,3],[25,1,25,3],[26,1,26,3],[34,1,34,4]]}
[null,"RĒĶINS","0005"]
[null,{"$f":"TODAY()","v":"2018-07-13"},null,{"$f":"Rēķina_kopsumma","v":79.65},null," ","Uzņēmuma iestatīšana"]
[null,"MAKSĀJUMA TERMIŅŠ:",{"$f":"TODAY()+15","v":"2018-07-28"},null,null," "]
[null,"Antra Ābola",null,"ADVENTURE WORKS"]
[null,"Fabrikam, Inc.",null,"Kļavu iela 23456"]
[null,"Pirmā iela 1234",null,"Apelsīnu aleja, CA 09876"]
[null,"Mežs, OR 12345"]
[null,"SKAITS","DETALIZĒTA INFORMĀCIJA","VIENĪBAS CENA","RINDIŅAS KOPSUMMA"]
[null,2,"Logrīki",14.95,{"$f":"IFERROR(Rēķina_informācija[[#This Row],[VIENĪBAS CENA]]*Rēķina_informācija[[#This Row],[SKAITS]],\"\")","v":{"v":29.9,"d":"29.90"}}]
[null,5,"Paplāksnes",9.95,{"$f":"IFERROR(Rēķina_informācija[[#This Row],[VIENĪBAS CENA]]*Rēķina_informācija[[#This Row],[SKAITS]],\"\")","v":49.75}]
[{"$nulls":4},{"$f":"IFERROR(Rēķina_informācija[[#This Row],[VIENĪBAS CENA]]*Rēķina_informācija[[#This Row],[SKAITS]],\"\")","v":0}]
[{"$nulls":4},{"$f":"IFERROR(Rēķina_informācija[[#This Row],[VIENĪBAS CENA]]*Rēķina_informācija[[#This Row],[SKAITS]],\"\")","v":0}]
[{"$nulls":4},{"$f":"IFERROR(Rēķina_informācija[[#This Row],[VIENĪBAS CENA]]*Rēķina_informācija[[#This Row],[SKAITS]],\"\")","v":0}]
[{"$nulls":4},{"$f":"IFERROR(Rēķina_informācija[[#This Row],[VIENĪBAS CENA]]*Rēķina_informācija[[#This Row],[SKAITS]],\"\")","v":0}]
[{"$nulls":4},{"$f":"IFERROR(Rēķina_informācija[[#This Row],[VIENĪBAS CENA]]*Rēķina_informācija[[#This Row],[SKAITS]],\"\")","v":0}]
[{"$nulls":4},{"$f":"IFERROR(Rēķina_informācija[[#This Row],[VIENĪBAS CENA]]*Rēķina_informācija[[#This Row],[SKAITS]],\"\")","v":0}]
[{"$nulls":4},{"$f":"IFERROR(Rēķina_informācija[[#This Row],[VIENĪBAS CENA]]*Rēķina_informācija[[#This Row],[SKAITS]],\"\")","v":0}]
[{"$nulls":4},{"$f":"IFERROR(Rēķina_informācija[[#This Row],[VIENĪBAS CENA]]*Rēķina_informācija[[#This Row],[SKAITS]],\"\")","v":0}]
[{"$nulls":4},{"$f":"IFERROR(Rēķina_informācija[[#This Row],[VIENĪBAS CENA]]*Rēķina_informācija[[#This Row],[SKAITS]],\"\")","v":0}]
[{"$nulls":4},{"$f":"IFERROR(Rēķina_informācija[[#This Row],[VIENĪBAS CENA]]*Rēķina_informācija[[#This Row],[SKAITS]],\"\")","v":0}]
[{"$nulls":4},{"$f":"IFERROR(Rēķina_informācija[[#This Row],[VIENĪBAS CENA]]*Rēķina_informācija[[#This Row],[SKAITS]],\"\")","v":0}]
[{"$nulls":4},{"$f":"IFERROR(Rēķina_informācija[[#This Row],[VIENĪBAS CENA]]*Rēķina_informācija[[#This Row],[SKAITS]],\"\")","v":0}]
[{"$nulls":4},{"$f":"IFERROR(Rēķina_informācija[[#This Row],[VIENĪBAS CENA]]*Rēķina_informācija[[#This Row],[SKAITS]],\"\")","v":0}]
[null,"Atlaide"]
[null,"Neto kopsumma",null,null,{"$f":"SUM(Rēķina_informācija[RINDIŅAS KOPSUMMA])-E24","v":{"v":79.65,"d":"79.65 €"}}]
[null,"Nodokļi"]
[null,{"$f":" \"KOPSUMMA, \" & REPT(Uzņēmuma_iestatīšanas_jūsu_valūtas_nosaukuma_saīsinājums,LEN(Uzņēmuma_iestatīšanas_jūsu_valūtas_nosaukuma_saīsinājums)>0)","v":"KOPSUMMA, EUR"},null,null,{"$f":"IFERROR(E25+E26, \"\")","v":{"v":79.65,"d":"79.65 €"}}]
[null,"MAKSĀJUMA DATI",null,null,"CITA INFORMĀCIJA"]
[null,"Saņēmēja vārds:",{"$f":" Uzņēmuma_iestatīšanas_saņēmēja_bankas_nosaukums","v":"Adventure Works"},null,{"$f":"IFERROR(Uzņēmuma_iestatīšanas_jūsu_vārds,\"\")","v":""}]
[null,"Bankas nosaukums:",{"$f":"Uzņēmuma_iestatīšanas_Bankas_nosaukums","v":"Woodgrove Bank"},null,{"$f":"IFERROR(\"Tālrunis: \" & Uzņēmuma_iestatīšanas_jūsu_tālrunis,\"\")","v":"Tālrunis: 425-555-0150"}]
[null,"Bankas adrese:",{"$f":"Uzņēmuma_iestatīšanas_bankas_adrese","v":"Galvenā iela 234, Apelsīnu aleja, CA 09876"},null,{"$f":"IFERROR(\"Faksimils: \" & Uzņēmuma_iestatīšanas_jūsu_fakss,\"\")","v":"Faksimils: 425-555-0151"}]
[null,"Konta numurs:",{"$f":"Uzņēmuma_iestatīšanas_bankas_konts","v":1234567},null,{"$f":"IFERROR(Uzņēmuma_iestatīšanas_jūsu_URL,\"\")","v":"Adventure-Works.com"}]
[null,"Maršrutēšanas numurs (SWIFT kods):",{"$f":"Uzņēmuma_iestatīšanas_Bankas_maršrutēšana","v":9876543210},null,{"$f":"IFERROR(Uzņēmuma_iestatīšanas_jūsu_epasts,\"\")","v":"Grāmatvedība@Adventure-Works.com"}]
[null,"Maksājuma atsauce:",{"$f":"Rēķina_numura_attēlojums","v":"0005"},null,{"$f":"IFERROR(IF(LEN(Client_PO),\"Contract/PO: \" & Client_PO,\"\"),\"\")","v":""}]
[null,{"$f":"UPPER(\"Maksājums ir jāveic ar bankas pārskaitījumu vai čeku, kas izmaksājams uzņēmumam \" & Uzņēmuma_iestatīšanas_čeka_saņēmējs& \".\")","v":"MAKSĀJUMS IR JĀVEIC AR BANKAS PĀRSKAITĪJUMU VAI ČEKU, KAS IZMAKSĀJAMS UZŅĒMUMAM ADVENTURE WORKS."}]

{"sheet":"Uzņēmuma iestatīšana","index":1,"n_rows":20,"n_cols":5,"rows_kept":20}
[null,"UZŅĒMUMA IESTATĪŠANA"]
[null,"DETALIZĒTA INFORMĀCIJA PAR RĒĶINU IZRAKSTOŠO UZŅĒMUMU","VĒRTĪBA",null,"Norēķinu rēķins"]
[null,"Vārds","Olafs Paegle"]
[null,"Uzņēmuma nosaukums","ADVENTURE WORKS"]
[null,"Adreses 1. rindiņa","Kļavu iela 23456"]
[null,"Adreses 2. rindiņa","Apelsīnu aleja, CA 09876"]
[null,"Adreses 3. rindiņa"]
[null,"Adreses 4. rindiņa"]
[null,"Adreses 5. rindiņa"]
[null,"Tālrunis","425-555-0150"]
[null,"Faksimils","425-555-0151"]
[null,"Tīmekļa vietne","Adventure-Works.com"]
[null,"E-pasts","Grāmatvedība@Adventure-Works.com"]
[null,"Valūtas nosaukuma saīsinājums","EUR"]
[null,"Saņēmēja nosaukums bankas pārskaitījumam","Adventure Works"]
[null,"Bankas nosaukums","Woodgrove Bank"]
[null,"Bankas adrese","Galvenā iela 234, Apelsīnu aleja, CA 09876"]
[null,"Konta numurs",1234567]
[null,"Maršrutēšanas numurs (SWIFT kods)",9876543210]
[null,"Čeka saņēmēja nosaukums","Adventure Works"]